fUST/lending_fUST_20251024
["ID","MTS","AMOUNT","RATE_DAILY","PERIOD"]
[392259668,1761286341231,-500.0,0.00020398,2]
[392259669,1761286341280,-500.0,0.00020398,2]
[392259670,1761286341331,-500.0,0.00020398,2]
[392259671,1761286341382,-500.0,0.00020398,2]
[392259672,1761286341429,-500.0,0.00020398,2]
[392259673,1761286341476,-222.32426412,0.00020398,2]
[392259674,1761286341511,226.41,0.00019662,30]
[392259675,1761286341634,-277.67573588,0.00020398,2]
[392259676,1761286341681,-500.0,0.00020398,2]
[392259677,1761286341726,-500.0,0.00020398,2]
[392259678,1761286341772,-500.0,0.00020398,2]
[392259679,1761286341816,-500.0,0.00020398,2]
[392259680,1761286341864,-500.0,0.00020398,2]
[392259681,1761286341911,-500.0,0.00020398,2]
[392259682,1761286341966,-500.0,0.00020398,2]
[392259683,1761286342015,-500.0,0.00020398,2]
[392259684,1761286342064,-500.0,0.00020398,2]
[392259685,1761286342203,-500.0,0.00020398,2]
[392259686,1761286342251,-500.0,0.00020398,2]
[392259687,1761286342303,-500.0,0.00020398,2]
[392259688,1761286342354,-500.0,0.00020398,2]
[392259689,1761286342411,-500.0,0.00020398,2]
[392259690,1761286342461,-500.0,0.00020398,2]
[392259691,1761286342513,-500.0,0.00020398,2]
[392259692,1761286342560,-500.0,0.00020398,2]
[392259693,1761286342607,-500.0,0.00020398,2]
[392259694,1761286342656,-500.0,0.00020398,2]
[392259695,1761286342731,271.7,0.00020449,30]
[392259696,1761286342832,-500.0,0.00020398,2]
[392259697,1761286344829,-220.85203848,0.00020399,2]
[392259698,1761286344877,-262.39782277,0.00020399,2]
[392259699,1761286344923,-1000.0,0.00020399,2]
[392259700,1761286344973,-1019.81325145,0.00020399,2]
[392259701,1761286345159,4405.29430311,0.00020398,2]
[392259702,1761286345416,-1088.58947149,0.000204,2]
[392259703,1761286345463,-10000.01,0.000204,2]
[392259704,1761286345498,-10000.01,0.000204,2]
[392259705,1761286345531,-10000.01,0.000204,2]
[392259706,1761286345564,-10000.01,0.000204,2]
[392259707,1761286345597,-10000.01,0.000204,2]
[392259708,1761286345632,-10000.01,0.000204,2]
[392259709,1761286345665,-10000.01,0.000204,2]
[392259710,1761286348708,-300.0,0.000193,2]
[392259711,1761286348782,-9400.01,0.000204,2]
[392259712,1761286348879,-10000.01,0.000204,2]
[392259713,1761286349838,196.0,0.00016,2]
[392259714,1761286349896,196.0,0.00016525,2]
[392259715,1761286349985,196.0,0.0001705,2]
[392259716,1761286350074,196.0,0.00017575,2]
[392259717,1761286351717,-301.20333815,0.000181,2]
[392259718,1761286351794,-9397.6033237,0.000204,2]
[392259719,1761286351976,-10000.01,0.000204,2]
[392259720,1761286352129,-10000.01,0.000204,2]
[392259721,1761286352275,-10000.01,0.000204,2]
[392259722,1761286352410,-10000.01,0.000204,2]
[392259723,1761286352559,-10000.01,0.000204,2]
[392259724,1761286352753,-10000.01,0.000204,2]
[392259725,1761286352926,-10000.01,0.000204,2]
[392259726,1761286354552,-10000.01,0.000204,2]
[392259727,1761286357640,-300.0,0.000193,2]
[392259728,1761286357690,-1542.46369225,0.000204,2]
[392259729,1761286357736,-429.75594059,0.00020442,2]
[392259730,1761286357782,-345.376,0.00020483,2]
[392259731,1761286357825,-178.61782781,0.00020483,2]
[392259732,1761286357874,-687.0,0.00020484,2]
[392259733,1761286357920,-1200.0,0.00020499,2]
[392259734,1761286358386,-633.5830787,0.000205,2]
[392259735,1761286358456,-10000.01,0.000205,2]
[392259736,1761286358513,-10000.01,0.000205,2]
[392259737,1761286358564,-10000.01,0.000205,2]
[392259738,1761286358605,-10000.01,0.000205,2]
[392259739,1761286358661,-10000.01,0.000205,2]
[392259740,1761286358829,-10000.01,0.000205,2]
[392259741,1761286359035,-2624.03423442,0.000205,2]
[392259742,1761286359090,-4751.94153116,0.000205,2]
[392259743,1761286359742,5000.0,0.00019107,2]
[392259744,1761286366894,300.0,0.000193,2]
[392259745,1761286417926,150.73,0.00019725,30]
[392259746,1761286418385,200.97,0.00020583,30]
[392259747,1761286498339,193.3,0.0002077,30]
[392259748,1761286523912,734.95749185,0.00019888,7]
[392259749,1761286559431,5000.0,0.00019314,2]
[392259750,1761286567681,657.0278115,0.00019314,2]
[392259751,1761286576174,4342.9821885,0.00019314,2]
[392259752,1761286576225,657.0178115,0.00019314,2]
[392259753,1761286578403,189.08,0.00018385,30]
[392259754,1761286578860,236.35,0.00019152,30]
[392259755,1761286579424,283.62,0.00019918,30]
[392259756,1761286579874,330.89,0.00020684,30]
[392259757,1761286584680,5000.0,0.00019314,2]
[392259758,1761286600174,4342.9921885,0.00019314,2]
[392259759,1761286600215,657.0078115,0.00019314,2]
[392259760,1761286608052,5000.0,0.00019314,2]
[392259761,1761286623517,5000.0,0.00019314,2]
[392259762,1761286632007,5000.0,0.00019314,2]
[392259763,1761286634705,0.01,0.00019205,2]
[392259764,1761286634748,7381.4589344,0.00019205,2]
[392259765,1761286639491,-1444.7787346,0.0001937,2]
[392259766,1761286639537,-163.21674623,0.0001982,2]
[392259767,1761286639584,-1553.83958362,0.00020035,2]
[392259768,1761286639635,-300.0,0.00020198,2]
[392259769,1761286639682,-154.59642694,0.00020199,2]
[392259770,1761286639731,-183.67847594,0.00020199,2]
[392259771,1761286639779,-500.0,0.00020199,2]
[392259772,1761286639824,-159.77044649,0.00020199,2]
[392259773,1761286639873,-500.0,0.00020199,2]
[392259774,1761286642822,-500.0,0.00020199,2]
[392259775,1761286642868,-264.72363544,0.00020199,2]
[392259776,1761286642919,-500.0,0.00020199,2]
[392259777,1761286642964,-500.0,0.00020199,2]
[392259778,1761286643009,-500.0,0.00020199,2]
[392259779,1761286643056,-500.0,0.00020199,2]
[392259780,1761286643110,-500.0,0.00020199,2]
[392259781,1761286643160,-500.0,0.00020199,2]
[392259782,1761286643213,-419.11348833,0.00020199,2]
[392259783,1761286643371,-500.0,0.00020199,2]
[392259784,1761286643426,-210.25187039,0.00020199,2]
[392259785,1761286643679,-500.0,0.00020199,2]
[392259786,1761286643726,-500.0,0.00020199,2]
[392259787,1761286643773,-531.52434385,0.00020199,2]
[392259788,1761286643820,-500.0,0.00020199,2]
[392259789,1761286643868,-500.0,0.00020199,2]
[392259790,1761286643929,-500.0,0.00020199,2]
[392259791,1761286643984,-500.0,0.00020199,2]
[392259792,1761286644035,-500.0,0.00020199,2]
[392259793,1761286644086,-500.0,0.00020199,2]
[392259794,1761286644137,-436.9613123,0.00020199,2]
[392259795,1761286644380,-63.0386877,0.00020199,2]
[392259796,1761286644429,-500.0,0.00020199,2]
[392259797,1761286644475,-500.0,0.00020199,2]
[392259798,1761286644521,-500.0,0.00020199,2]
[392259799,1761286644567,-500.0,0.00020199,2]
[392259800,1761286644613,-500.0,0.00020199,2]
[392259801,1761286644661,-500.0,0.00020199,2]
[392259802,1761286644708,-500.0,0.00020199,2]
[392259803,1761286644763,-500.0,0.00020199,2]
[392259804,1761286644813,-500.0,0.00020199,2]
[392259805,1761286644866,-373.9326246,0.00020199,2]
[392259806,1761286645102,-126.0673754,0.00020199,2]
[392259807,1761286645155,-500.0,0.00020199,2]
[392259808,1761286645209,-500.0,0.00020199,2]
[392259809,1761286645258,-500.0,0.00020199,2]
[392259810,1761286645303,-500.0,0.00020199,2]
[392259811,1761286645348,-500.0,0.00020199,2]
[392259812,1761286645392,-500.0,0.00020199,2]
[392259813,1761286645435,-500.0,0.00020199,2]
[392259814,1761286645477,-500.0,0.00020199,2]
[392259815,1761286645523,-500.0,0.00020199,2]
[392259816,1761286645571,-247.8752492,0.00020199,2]
[392259817,1761286646548,-252.1247508,0.00020199,2]
[392259818,1761286646596,-500.0,0.00020199,2]
[392259819,1761286646644,-366.39347898,0.00020199,2]
[392259820,1761286646686,-500.0,0.00020199,2]
[392259821,1761286646731,-500.0,0.00020199,2]
[392259822,1761286646775,-500.0,0.00020199,2]
[392259823,1761286646817,-500.0,0.00020199,2]
[392259824,1761286646865,-500.0,0.00020199,2]
[392259825,1761286646912,-500.0,0.00020199,2]
[392259826,1761286646959,-500.0,0.00020199,2]
[392259827,1761286647009,-262.97354044,0.00020199,2]
[392259828,1761286648509,-237.02645956,0.00020199,2]
[392259829,1761286648559,-500.0,0.00020199,2]
[392259830,1761286648610,-500.0,0.00020199,2]
[392259831,1761286648660,-500.0,0.00020199,2]
[392259832,1761286648712,-500.0,0.00020199,2]
[392259833,1761286648764,-500.0,0.00020199,2]
[392259834,1761286648816,-500.0,0.00020199,2]
[392259835,1761286648869,-500.0,0.00020199,2]
[392259836,1761286648922,-500.0,0.00020199,2]
[392259837,1761286648977,-500.0,0.00020199,2]
[392259838,1761286649028,-25.95708088,0.00020199,2]
[392259839,1761286649553,-474.04291912,0.00020199,2]
[392259840,1761286649610,-500.0,0.00020199,2]
[392259841,1761286649671,-500.0,0.00020199,2]
[392259842,1761286649729,-500.0,0.00020199,2]
[392259843,1761286649775,-500.0,0.00020199,2]
[392259844,1761286649823,-500.0,0.00020199,2]
[392259845,1761286649870,-500.0,0.00020199,2]
[392259846,1761286649921,-500.0,0.00020199,2]
[392259847,1761286649975,-550.0,0.00020199,2]
[392259848,1761286650027,-451.92416176,0.00020199,2]
[392259849,1761286650331,-48.07583824,0.00020199,2]
[392259850,1761286650376,-500.0,0.00020199,2]
[392259851,1761286650421,-500.0,0.00020199,2]
[392259852,1761286650465,-500.0,0.00020199,2]
[392259853,1761286650507,-500.0,0.00020199,2]
[392259854,1761286650551,-500.0,0.00020199,2]
[392259855,1761286650595,-500.0,0.00020199,2]
[392259856,1761286650638,-500.0,0.00020199,2]
[392259857,1761286650685,-500.0,0.00020199,2]
[392259858,1761286650729,-500.0,0.00020199,2]
[392259859,1761286650775,-403.85832352,0.00020199,2]
[392259860,1761286656421,169.67,0.00020058,30]
[392259861,1761286659326,212.08,0.00020894,30]
[392259862,1761286663391,-5000.0,0.00019997,2]
[392259863,1761286663543,-161.0,0.00020198,2]
[392259864,1761286663590,-96.14167648,0.00020199,2]
[392259865,1761286663636,-500.0,0.00020199,2]
[392259866,1761286663683,-500.0,0.00020199,2]
[392259867,1761286663728,-286.45,0.00020199,2]
[392259868,1761286663772,-500.0,0.00020199,2]
[392259869,1761286663820,-500.0,0.00020199,2]
[392259870,1761286663871,-500.0,0.00020199,2]
[392259871,1761286663919,-500.0,0.00020199,2]
[392259872,1761286663964,-464.22049294,0.00020199,2]
[392259873,1761286664012,-298.62812708,0.00020199,2]
[392259874,1761286664057,-500.0,0.00020199,2]
[392259875,1761286664364,-500.0,0.00020199,2]
[392259876,1761286664411,-500.0,0.00020199,2]
[392259877,1761286664455,-500.0,0.00020199,2]
[392259878,1761286664500,-500.0,0.00020199,2]
[392259879,1761286664548,-500.0,0.00020199,2]
[392259880,1761286664597,-500.0,0.00020199,2]
[392259881,1761286664654,-500.0,0.00020199,2]
[392259882,1761286664703,-500.0,0.00020199,2]
[392259883,1761286664754,-619.16924355,0.00020199,2]
[392259884,1761286664800,-261.6715129,0.00020199,2]
[392259885,1761286664985,-238.3284871,0.00020199,2]
[392259886,1761286665033,-500.0,0.00020199,2]
[392259887,1761286665080,-500.0,0.00020199,2]
[392259888,1761286665123,-322.32273481,0.00020199,2]
[392259889,1761286665168,-500.0,0.00020199,2]
[392259890,1761286665216,-321.85759594,0.00020199,2]
[392259891,1761286665263,-572.60185304,0.00020199,2]
[392259892,1761286665309,-500.0,0.00020199,2]
[392259893,1761286665356,-500.0,0.00020199,2]
[392259894,1761286665403,-500.0,0.00020199,2]
[392259895,1761286665449,-500.0,0.00020199,2]
[392259896,1761286665770,-481.53096255,0.00020199,2]
[392259897,1761286665821,-500.0,0.00020199,2]
[392259898,1761286665869,-418.49241328,0.00020199,2]
[392259899,1761286665919,-383.06460773,0.00020199,2]
[392259900,1761286665973,-500.0,0.00020199,2]
[392259901,1761286666021,-188.28001442,0.00020199,2]
[392259902,1761286666072,-457.28397076,0.00020199,2]
[392259903,1761286669604,-249.81386716,0.000201,2]
[392259904,1761286669867,-7871.03524626,0.000202,2]
[392259905,1761286669945,-10000.01,0.000202,2]
[392259906,1761286670125,-10000.01,0.000202,2]
[392259907,1761286670268,-10000.01,0.000202,2]
[392259908,1761286670472,-10000.01,0.000202,2]
[392259909,1761286670560,-10000.01,0.000202,2]
[392259910,1761286679227,-5000.0,0.00019998,2]
[392259911,1761286679310,-0.01,0.0002019,2]
[392259912,1761286679457,-249.80386715,0.0002019,2]
[392259913,1761286679504,-500.0,0.00020199,2]
[392259914,1761286679554,-500.0,0.00020199,2]
[392259915,1761286679599,-179.67345429,0.00020199,2]
[392259916,1761286679647,-500.0,0.00020199,2]
[392259917,1761286679697,-245.66403745,0.00020199,2]
[392259918,1761286679745,-471.95200306,0.00020199,2]
[392259919,1761286679794,-500.0,0.00020199,2]
[392259920,1761286679844,-500.0,0.00020199,2]
[392259921,1761286679891,-500.0,0.00020199,2]
[392259922,1761286679940,-547.61606282,0.00020199,2]
[392259923,1761286679989,-110.59115046,0.00020199,2]
[392259924,1761286680191,-389.40884954,0.00020199,2]
[392259925,1761286680247,-500.0,0.00020199,2]
[392259926,1761286680302,-500.0,0.00020199,2]
[392259927,1761286680574,-340.50595154,0.00019793,2]
[392259928,1761286680972,-48.902898,0.000202,2]
[392259929,1761286681006,-7221.19230092,0.000202,2]
[392259930,1761286681040,-340.50595154,0.000202,2]
[392259931,1761286681074,-9318.99809692,0.000202,2]
[392259932,1761286699550,-2012.51366049,0.00020139,2]
[392259933,1761286699599,-300.0,0.00020199,2]
[392259934,1761286699709,-5374.98267902,0.000202,2]
[392259935,1761286699762,-10000.01,0.000202,2]
[392259936,1761286699890,-175.68717266,0.000202,2]
[392259937,1761286699937,-9648.63565468,0.000202,2]
[392259938,1761286702570,-5000.0,0.00019938,2]
[392259939,1761286702641,-0.01,0.00020169,2]
[392259940,1761286702706,-432.00398296,0.00020169,2]
[392259941,1761286702750,-4136.00203408,0.000202,2]
[392259942,1761286702837,-863.99796592,0.000202,2]
[392259943,1761286702889,-170.0,0.00020223,2]
[392259944,1761286702933,-500.0,0.00020273,2]
[392259945,1761286702977,-341.65105183,0.00020273,2]
[392259946,1761286703021,-500.0,0.00020273,2]
[392259947,1761286703070,-500.0,0.00020273,2]
[392259948,1761286703125,-500.0,0.00020273,2]
[392259949,1761286703181,-500.0,0.00020273,2]
[392259950,1761286703236,-510.41564349,0.00020273,2]
[392259951,1761286703300,-262.51773703,0.00020273,2]
[392259952,1761286703361,-500.0,0.00020273,2]
[392259953,1761286703420,-249.81386715,0.0002028,2]
[392259954,1761286704008,-931.213401,0.000203,2]
[392259955,1761286742988,171.15,0.00020255,30]
[392259956,1761286743340,213.94,0.00021099,30]
[392259957,1761286761293,-5000.0,0.00019896,2]
[392259958,1761286770653,0.01,0.00019896,2]
[392259959,1761286770689,4999.99,0.00019896,2]
[392259960,1761286776286,-326.30881527,0.00019997,2]
[392259961,1761286791579,-5000.0,0.00020097,2]
[392259962,1761286791858,-300.0,0.00020198,2]
[392259963,1761286791904,-511.84097732,0.00020199,2]
[392259964,1761286791949,-1779.89481813,0.0002028,2]
[392259965,1761286792139,-4816.5384091,0.0002028,2]
[392259966,1761286792188,-80.4831818,0.0002029,3]
[392259967,1761286792424,-22.5152273,0.0002029,3]
[392259968,1761286792474,-183.4515909,0.0002029,3]
[392259969,1761286792520,-859.37,0.0002029,3]
[392259970,1761286792635,-7914.3668182,0.00020299,2]
[392259971,1761286792667,-10000.01,0.00020299,2]
[392259972,1761286794460,-10000.01,0.00020299,2]
[392259973,1761286794618,-782.08089972,0.00020299,2]
[392259974,1761286794661,-8435.84820056,0.00020299,2]
[392259975,1761286797192,196.0,0.00016,2]
[392259976,1761286797362,196.0,0.00016045,2]
[392259977,1761286797528,196.0,0.00016089,2]
[392259978,1761286797677,196.0,0.00016134,2]
[392259979,1761286797821,196.0,0.00016179,2]
[392259980,1761286797964,196.0,0.00016223,2]
[392259981,1761286798112,196.0,0.00016268,2]
[392259982,1761286798427,196.0,0.00016313,2]
[392259983,1761286798576,196.0,0.00016357,2]
[392259984,1761286798737,196.0,0.00016402,2]
[392259985,1761286798888,196.0,0.00016447,2]
[392259986,1761286799052,196.0,0.00016491,2]
[392259987,1761286799204,196.0,0.00016536,2]
[392259988,1761286799402,196.0,0.00016581,2]
[392259989,1761286799547,196.0,0.00016626,2]
[392259990,1761286799916,196.0,0.0001667,2]
[392259991,1761286800076,196.0,0.00016715,2]
[392259992,1761286800241,196.0,0.0001676,2]
[392259993,1761286800400,196.0,0.00016804,2]
[392259994,1761286800545,196.0,0.00016849,2]
[392259995,1761286800685,196.0,0.00016894,2]
[392259996,1761286800831,196.0,0.00016938,2]
[392259997,1761286800984,196.0,0.00016983,2]
[392259998,1761286801125,196.0,0.00017028,2]
[392259999,1761286801266,196.0,0.00017072,2]
[392260000,1761286801421,196.0,0.00017117,2]
[392260001,1761286801597,196.0,0.00017162,2]
[392260002,1761286801740,196.0,0.00017206,2]
[392260003,1761286801920,196.0,0.00017251,2]
[392260004,1761286802065,196.0,0.00017296,2]
[392260005,1761286802242,196.0,0.0001734,2]
[392260006,1761286802389,196.0,0.00017385,2]
[392260007,1761286802546,196.0,0.0001743,2]
[392260008,1761286802712,196.0,0.00017474,2]
[392260009,1761286802852,196.0,0.00017519,2]
[392260010,1761286803005,196.0,0.00017564,2]
[392260011,1761286803183,196.0,0.00017609,2]
[392260012,1761286803338,196.0,0.00017653,2]
[392260013,1761286803487,196.0,0.00017698,2]
[392260014,1761286803632,196.0,0.00017743,2]
[392260015,1761286803778,196.0,0.00017787,2]
[392260016,1761286803928,196.0,0.00017832,2]
[392260017,1761286804167,196.0,0.00017877,2]
[392260018,1761286804533,196.0,0.00017921,2]
[392260019,1761286804706,196.0,0.00017966,2]
[392260020,1761286806746,-196.0,0.00018011,2]
[392260021,1761286808396,-196.0,0.00018055,2]
[392260022,1761286808424,-338.46016691,0.000181,2]
[392260023,1761286809885,5000.0,0.00018011,2]
[392260024,1761286823047,169.3,0.00020152,30]
[392260025,1761286823471,211.62,0.00020992,30]
[392260027,1761286833078,2012.51366049,0.00019232,2]
[392260032,1761286892720,1249.731744,0.00013699,2]
[392260033,1761286902648,167.53,0.00020612,30]
[392260036,1761286917449,196.0,0.00016,2]
[392260037,1761286917621,196.0,0.000167,2]
[392260038,1761286917779,196.0,0.000174,2]
[392260039,1761286917933,385.52760067,0.000181,2]
[392260041,1761286943066,-2012.51366049,0.00019691,2]
[392260042,1761286943115,-2012.51366049,0.00019889,2]
[392260043,1761286943381,-5000.0,0.00020095,2]
[392260044,1761286943602,-300.0,0.00020186,2]
[392260045,1761286943653,-1249.731744,0.00020187,2]
[392260046,1761286943707,-574.100304,0.00020196,2]
[392260047,1761286943757,-175.46802809,0.00020199,2]
[392260048,1761286943808,-2012.51366049,0.00020222,2]
[392260049,1761286943859,-300.0,0.00020298,2]
[392260050,1761286943913,-300.0,0.00020298,2]
[392260051,1761286944175,-1200.0,0.00020298,2]
[392260052,1761286944227,-300.0,0.00020298,2]
[392260053,1761286944283,-300.0,0.00020298,2]
[392260054,1761286944345,-293.07494564,0.00020298,2]
[392260055,1761286944408,-187.66893249,0.00020298,2]
[392260056,1761286944465,-500.0,0.00020298,2]
[392260057,1761286944519,-500.0,0.00020298,2]
[392260058,1761286944570,-217.95475558,0.00020298,2]
[392260059,1761286944629,-500.0,0.00020298,2]
[392260060,1761286944685,-500.0,0.00020298,2]
[392260061,1761286944736,-500.0,0.00020298,2]
[392260062,1761286944984,-500.0,0.00020298,2]
[392260063,1761286945041,-500.0,0.00020298,2]
[392260064,1761286945100,-500.0,0.00020298,2]
[392260065,1761286945163,-500.0,0.00020298,2]
[392260066,1761286945222,-500.0,0.00020298,2]
[392260067,1761286945276,-500.0,0.00020298,2]
[392260068,1761286945329,-500.0,0.00020298,2]
[392260069,1761286945380,-500.0,0.00020298,2]
[392260070,1761286945432,-500.0,0.00020298,2]
[392260071,1761286945484,-500.0,0.00020298,2]
[392260072,1761286945553,-500.0,0.00020298,2]
[392260073,1761286945608,-500.0,0.00020298,2]
[392260074,1761286945664,-500.0,0.00020298,2]
[392260075,1761286945723,-500.0,0.00020298,2]
[392260076,1761286945779,-500.0,0.00020298,2]
[392260077,1761286945835,-500.0,0.00020298,2]
[392260078,1761286945891,-500.0,0.00020298,2]
[392260079,1761286945943,-500.0,0.00020298,2]
[392260080,1761286946000,-500.0,0.00020298,2]
[392260081,1761286946056,-500.0,0.00020298,2]
[392260082,1761286946398,-500.0,0.00020298,2]
[392260083,1761286946451,-500.0,0.00020298,2]
[392260084,1761286946503,-500.0,0.00020298,2]
[392260085,1761286946556,-500.0,0.00020298,2]
[392260086,1761286946607,-500.0,0.00020298,2]
[392260087,1761286946662,-500.0,0.00020298,2]
[392260088,1761286946716,-500.0,0.00020298,2]
[392260089,1761286946769,-500.0,0.00020298,2]
[392260090,1761286946820,-500.0,0.00020298,2]
[392260091,1761286946876,-500.0,0.00020298,2]
[392260092,1761286947111,-500.0,0.00020298,2]
[392260093,1761286947180,-500.0,0.00020298,2]
[392260094,1761286947234,-500.0,0.00020298,2]
[392260095,1761286947291,-500.0,0.00020298,2]
[392260096,1761286947347,-500.0,0.00020298,2]
[392260097,1761286947402,-500.0,0.00020298,2]
[392260098,1761286947458,-500.0,0.00020298,2]
[392260099,1761286947510,-500.0,0.00020298,2]
[392260100,1761286947564,-500.0,0.00020298,2]
[392260101,1761286947615,-500.0,0.00020298,2]
[392260102,1761286947915,-500.0,0.00020298,2]
[392260103,1761286947971,-500.0,0.00020298,2]
[392260104,1761286948025,-500.0,0.00020298,2]
[392260105,1761286948082,-500.0,0.00020298,2]
[392260106,1761286948136,-500.0,0.00020298,2]
[392260107,1761286948188,-500.0,0.00020298,2]
[392260108,1761286948241,-500.0,0.00020298,2]
[392260109,1761286948297,-441.48460347,0.00020298,2]
[392260110,1761286948347,-312.94114449,0.00020298,2]
[392260111,1761286948396,-500.0,0.00020298,2]
[392260112,1761286948549,-500.0,0.00020298,2]
[392260113,1761286948599,-500.0,0.00020298,2]
[392260114,1761286948647,-500.0,0.00020298,2]
[392260115,1761286948697,-500.0,0.00020298,2]
[392260116,1761286948748,-500.0,0.00020298,2]
[392260117,1761286948800,-500.0,0.00020298,2]
[392260118,1761286948851,-500.0,0.00020298,2]
[392260119,1761286948901,-500.0,0.00020298,2]
[392260120,1761286948956,-500.0,0.00020298,2]
[392260121,1761286949006,-500.0,0.00020298,2]
[392260122,1761286952406,-3401.36136629,0.0002,2]
[392260123,1761286952447,-10000.01,0.0002,2]
[392260124,1761286952486,-10000.01,0.0002,2]
[392260127,1761286952524,-10000.01,0.0002,2]
[392260128,1761286957997,-1200.0,0.00019999,2]
[392260129,1761286958084,-7600.01,0.0002,2]
[392260130,1761286958539,-10000.01,0.0002,2]
[392260131,1761286958740,-10000.01,0.0002,2]
[392260132,1761286968316,5000.0,0.00019178,2]
[392260133,1761286981615,176.97,0.0002055,30]
[392260134,1761287009642,-2459.25849459,0.00019602,2]
[392260135,1761287009693,-81.49301082,0.000198,2]
[392260136,1761287009931,-4918.50698918,0.000198,2]
[392260137,1761287010045,-81.50301082,0.00019999,2]
[392260138,1761287010144,-218.49698918,0.00019999,2]
[392260139,1761287010226,-9563.01602164,0.0002,2]
[392260140,1761287010297,-10000.01,0.0002,2]
[392260141,1761287010464,-10000.01,0.0002,2]
[392260142,1761287010651,-564.46738793,0.0002,2]
[392260143,1761287010694,-8871.07522414,0.0002,2]
[392260144,1761287010862,-2015.21824515,0.00020019,2]
[392260145,1761287010914,-2949.64843895,0.000201,2]
[392260146,1761287011030,-70.2766318,0.000202,2]
[392260147,1761287011076,-10000.01,0.000202,2]
[392260148,1761287011184,-10000.01,0.000202,2]
[392260149,1761287012449,-10000.01,0.000202,2]
[392260150,1761287012613,-10000.01,0.000202,2]
[392260151,1761287015684,-10000.01,0.000202,2]
[392260152,1761287015961,-10000.01,0.000202,2]
[392260153,1761287016161,-10000.01,0.000202,2]
[392260154,1761287016355,-10000.01,0.000202,2]
[392260155,1761287016532,-10000.01,0.000202,2]
[392260156,1761287016683,-70.3766318,0.000202,2]
[392260157,1761287016725,-9859.2567364,0.000202,2]
[392260158,1761287018532,-4397.6221515,0.000202,2]
[392260159,1761287018581,-500.0,0.00020273,2]
[392260160,1761287018697,-204.765697,0.00020273,2]
[392260161,1761287018748,-295.234303,0.00020273,2]
[392260162,1761287018799,-500.0,0.00020298,2]
[392260163,1761287018857,-500.0,0.00020298,2]
[392260164,1761287018911,-500.0,0.00020298,2]
[392260165,1761287018963,-500.0,0.00020298,2]
[392260166,1761287019015,-500.0,0.00020298,2]
[392260167,1761287019066,-500.0,0.00020298,2]
[392260168,1761287019118,-500.0,0.00020298,2]
[392260169,1761287019172,-500.0,0.00020298,2]
[392260170,1761287019222,-500.0,0.00020298,2]
[392260171,1761287019385,-500.0,0.00020298,2]
[392260172,1761287019434,-500.0,0.00020298,2]
[392260173,1761287019484,-500.0,0.00020298,2]
[392260174,1761287019533,-500.0,0.00020298,2]
[392260175,1761287019581,-500.0,0.00020298,2]
[392260176,1761287019633,-500.0,0.00020298,2]
[392260177,1761287019683,-500.0,0.00020298,2]